[Event "*** Titled Tuesday 3|2 Blitz"]
[Site "Chess.com"]
[Date "2015.02.24"]
[Round "3"]
[White "BeerLag"]
[Black "Konavets"]
[Result "0-1"]
[WhiteElo "2397"]
[BlackElo "2383"]
[TimeControl "180+2"]
[EndTime "11:30:52 PST"]
[Termination "Konavets won by resignation"]

1. e4 {[%clk 0:03:00]} 1... e5 {[%clk 0:02:54.3]} 2. Nf3 {[%clk 0:03:00.8]} 2...
Nc6 {[%clk 0:02:56]} 3. Bb5 {[%clk 0:03:02.4]} 3... Nge7 {[%clk 0:02:55]} 4. O-O
{[%clk 0:03:02.1]} 4... a6 {[%clk 0:02:56.2]} 5. Bc4 {[%clk 0:03:03.1]} 5... Ng6
{[%clk 0:02:56]} 6. d4 {[%clk 0:03:02.6]} 6... exd4 {[%clk 0:02:56.8]} 7. Nxd4
{[%clk 0:03:04.5]} 7... Bc5 {[%clk 0:02:56.7]} 8. Nxc6 {[%clk 0:03:03.7]} 8...
bxc6 {[%clk 0:02:58.6]} 9. Nc3 {[%clk 0:03:01.9]} 9... O-O {[%clk 0:02:59]} 10.
Bb3 {[%clk 0:02:42.7]} 10... d6 {[%clk 0:02:59]} 11. Qf3 {[%clk 0:02:37.5]}
11... Qh4 {[%clk 0:02:57.3]} 12. Qg3 {[%clk 0:02:28.1]} 12... Qh5 {[%clk
0:02:53.6]} 13. Be3 {[%clk 0:02:23.1]} 13... Bxe3 {[%clk 0:02:51.5]} 14. Qxe3
{[%clk 0:02:21.2]} 14... Kh8 {[%clk 0:02:52.9]} 15. f4 {[%clk 0:02:18.5]} 15...
f5 {[%clk 0:02:53.7]} 16. e5 {[%clk 0:02:17.5]} 16... dxe5 {[%clk 0:02:54.9]}
17. fxe5 {[%clk 0:02:19.4]} 17... f4 {[%clk 0:02:56.5]} 18. Qe4 {[%clk
0:02:18.3]} 18... Bf5 {[%clk 0:02:52.8]} 19. Qxc6 {[%clk 0:02:09.8]} 19... Nxe5
{[%clk 0:02:53.7]} 20. Qxc7 {[%clk 0:02:05.7]} 20... Bg6 {[%clk 0:02:54.4]} 21.
Be6 {[%clk 0:01:52.6]} 21... Rae8 {[%clk 0:02:53.3]} 22. Bh3 {[%clk 0:01:50.2]}
22... f3 {[%clk 0:02:53.7]} 23. Rf2 {[%clk 0:01:46.1]} 23... fxg2 {[%clk
0:02:52.5]} 24. Rxf8+ {[%clk 0:01:39.1]} 24... Rxf8 {[%clk 0:02:54.4]} 25. Bxg2
{[%clk 0:01:40.7]} 25... Nf3+ {[%clk 0:02:22.5]} 26. Bxf3 {[%clk 0:01:41]} 26...
Qxf3 {[%clk 0:02:24.4]} 27. Qg3 {[%clk 0:01:40.7]} 27... Qf6 {[%clk 0:02:25.6]}
28. Qg2 {[%clk 0:01:34.3]} 28... Qb6+ {[%clk 0:02:25.3]} 0-1

[Event "*** Titled Tuesday 3|2 Blitz"]
[Site "Chess.com"]
[Date "2015.02.24"]
[Round "3"]
[White "VerdeNotte"]
[Black "raskolnnikov"]
[Result "1-0"]
[WhiteElo "2536"]
[BlackElo "2275"]
[TimeControl "180+2"]
[EndTime "11:31:09 PST"]
[Termination "VerdeNotte won by resignation"]

1. g3 {[%clk 0:02:53.5]} 1... g6 {[%clk 0:02:57.3]} 2. Bg2 {[%clk 0:02:53.7]}
2... Bg7 {[%clk 0:02:59]} 3. d4 {[%clk 0:02:54]} 3... d5 {[%clk 0:02:58.8]} 4.
c4 {[%clk 0:02:54.8]} 4... c6 {[%clk 0:03:00.2]} 5. Nf3 {[%clk 0:02:55.7]} 5...
Nf6 {[%clk 0:03:01]} 6. Nc3 {[%clk 0:02:56.2]} 6... O-O {[%clk 0:03:02.2]} 7.
O-O {[%clk 0:02:56.5]} 7... dxc4 {[%clk 0:03:03.3]} 8. Ne5 {[%clk 0:02:57.4]}
8... Ng4 {[%clk 0:03:03.6]} 9. f4 {[%clk 0:02:53.8]} 9... Nxe5 {[%clk 0:03:03]}
10. dxe5 {[%clk 0:02:53.8]} 10... Qxd1 {[%clk 0:03:03.5]} 11. Rxd1 {[%clk
0:02:55.7]} 11... f6 {[%clk 0:02:52.1]} 12. exf6 {[%clk 0:02:56.7]} 12... exf6
{[%clk 0:02:52.6]} 13. e4 {[%clk 0:02:52.5]} 13... Nd7 {[%clk 0:02:38.4]} 14.
Be3 {[%clk 0:02:43.8]} 14... Re8 {[%clk 0:02:35.5]} 15. a4 {[%clk 0:02:38.6]}
15... Bf8 {[%clk 0:02:33.1]} 16. Bf1 {[%clk 0:02:38.1]} 16... Bc5 {[%clk
0:02:21]} 17. Bxc4+ {[%clk 0:02:38.2]} 17... Kf8 {[%clk 0:02:20.4]} 18. Kf2
{[%clk 0:02:34.9]} 18... a5 {[%clk 0:02:17]} 19. Kf3 {[%clk 0:02:31]} 19... Bxe3
{[%clk 0:02:17]} 20. Kxe3 {[%clk 0:02:32.9]} 20... Nc5 {[%clk 0:02:18.3]} 21.
Rd6 {[%clk 0:02:29.6]} 21... Nxe4 {[%clk 0:02:03.6]} 22. Nxe4 {[%clk 0:02:29.1]}
22... f5 {[%clk 0:02:04.9]} 23. Rf6+ {[%clk 0:02:26.8]} 23... Kg7 {[%clk
0:02:05.7]} 24. Rf7+ {[%clk 0:02:28]} 24... Kh6 {[%clk 0:02:06.3]} 25. g4 {[%clk
0:02:20.5]} 25... Rxe4+ {[%clk 0:02:06.7]} 26. Kf3 {[%clk 0:02:20.5]} 26... g5
{[%clk 0:01:57.2]} 27. fxg5+ {[%clk 0:02:06.5]} 27... Kxg5 {[%clk 0:01:56.8]}
28. h4+ {[%clk 0:02:07.7]} 28... Kg6 {[%clk 0:01:50.8]} 29. gxf5+ {[%clk
0:02:05.1]} 29... Bxf5 {[%clk 0:01:46.4]} 30. Rg1+ {[%clk 0:02:05.5]} 30... Kh6
{[%clk 0:01:47.7]} 31. Rf6+ {[%clk 0:01:57.8]} 1-0

[Event "*** Titled Tuesday 3|2 Blitz"]
[Site "Chess.com"]
[Date "2015.02.24"]
[Round "3"]
[White "FabianEnglert"]
[Black "Colombiano07"]
[Result "1-0"]
[WhiteElo "2236"]
[BlackElo "2015"]
[TimeControl "180+2"]
[EndTime "11:31:33 PST"]
[Termination "FabianEnglert won by resignation"]

1. Nf3 {[%clk 0:02:57.1]} 1... d5 {[%clk 0:02:59]} 2. g3 {[%clk 0:02:57.5]} 2...
c6 {[%clk 0:02:59.5]} 3. c4 {[%clk 0:02:57.7]} 3... e6 {[%clk 0:03:00.4]} 4. Bg2
{[%clk 0:02:56.3]} 4... f5 {[%clk 0:03:00.6]} 5. O-O {[%clk 0:02:56]} 5... Nf6
{[%clk 0:03:01.5]} 6. d3 {[%clk 0:02:57.3]} 6... dxc4 {[%clk 0:03:01.8]} 7. dxc4
{[%clk 0:02:56.7]} 7... Qxd1 {[%clk 0:03:02.8]} 8. Rxd1 {[%clk 0:02:58.6]} 8...
Nbd7 {[%clk 0:03:04]} 9. Bf4 {[%clk 0:02:58.2]} 9... Be7 {[%clk 0:03:04.8]} 10.
Nc3 {[%clk 0:02:51.5]} 10... O-O {[%clk 0:03:05.6]} 11. Rab1 {[%clk 0:02:50.3]}
11... Nh5 {[%clk 0:02:58.7]} 12. Bc7 {[%clk 0:02:42.8]} 12... Nhf6 {[%clk
0:02:55.3]} 13. b4 {[%clk 0:02:35.5]} 13... Re8 {[%clk 0:02:47.3]} 14. c5 {[%clk
0:02:32.1]} 14... Nd5 {[%clk 0:02:44.4]} 15. Nxd5 {[%clk 0:02:24.8]} 15... exd5
{[%clk 0:02:46.3]} 16. e3 {[%clk 0:02:21.7]} 16... Bf6 {[%clk 0:02:46.4]} 17.
Nd4 {[%clk 0:02:16.4]} 17... Ne5 {[%clk 0:02:43.7]} 18. b5 {[%clk 0:02:11.3]}
18... Bd7 {[%clk 0:02:40.4]} 19. bxc6 {[%clk 0:02:05.6]} 19... Bxc6 {[%clk
0:02:41.4]} 20. Nxf5 {[%clk 0:01:58.3]} 20... Nc4 {[%clk 0:01:51]} 21. Nd6
{[%clk 0:01:50.5]} 21... Nxd6 {[%clk 0:01:50.7]} 22. cxd6 {[%clk 0:01:52.4]}
22... Re5 {[%clk 0:01:45.3]} 23. d7 {[%clk 0:01:49.8]} 23... Rf5 {[%clk
0:01:41.5]} 24. Bh3 {[%clk 0:01:44.9]} 24... Rh5 {[%clk 0:01:38.9]} 25. Be6+
{[%clk 0:01:45.4]} 25... Kf8 {[%clk 0:01:39.5]} 26. g4 {[%clk 0:01:37.1]} 26...
Rh6 {[%clk 0:01:38]} 27. Bxd5 {[%clk 0:01:32.9]} 27... Bxd7 {[%clk 0:01:37.4]}
28. Bxb7 {[%clk 0:01:31.3]} 28... Re8 {[%clk 0:01:38.1]} 29. Rxd7 {[%clk
0:01:30.4]} 1-0

[Event "*** Titled Tuesday 3|2 Blitz"]
[Site "Chess.com"]
[Date "2015.02.24"]
[Round "3"]
[White "GedoGluperd"]
[Black "Zlatan56"]
[Result "0-1"]
[WhiteElo "2230"]
[BlackElo "2530"]
[TimeControl "180+2"]
[EndTime "11:31:35 PST"]
[Termination "Zlatan56 won by resignation"]

1. Nf3 {[%clk 0:03:00]} 1... Nf6 {[%clk 0:02:57.2]} 2. g3 {[%clk 0:03:01.1]}
2... g6 {[%clk 0:02:58.2]} 3. Bg2 {[%clk 0:03:02.5]} 3... Bg7 {[%clk 0:02:59.7]}
4. O-O {[%clk 0:03:04.1]} 4... O-O {[%clk 0:03:00.8]} 5. d3 {[%clk 0:03:05.6]}
5... c5 {[%clk 0:03:01.4]} 6. c4 {[%clk 0:03:03.7]} 6... Nc6 {[%clk 0:03:01.9]}
7. Nc3 {[%clk 0:03:05.1]} 7... d6 {[%clk 0:03:01.9]} 8. Rb1 {[%clk 0:03:05]}
8... Qd7 {[%clk 0:02:50.4]} 9. a3 {[%clk 0:03:05]} 9... b6 {[%clk 0:02:50.7]}
10. Bd2 {[%clk 0:03:04.2]} 10... Bb7 {[%clk 0:02:51.5]} 11. b4 {[%clk
0:03:05.3]} 11... Rac8 {[%clk 0:02:41.9]} 12. Ne1 {[%clk 0:02:56.1]} 12... Nd4
{[%clk 0:02:39.9]} 13. Nc2 {[%clk 0:02:51.7]} 13... Bxg2 {[%clk 0:02:38.8]} 14.
Kxg2 {[%clk 0:02:52.6]} 14... e5 {[%clk 0:02:39.6]} 15. e4 {[%clk 0:02:49.3]}
15... Qb7 {[%clk 0:02:19.8]} 16. Ne3 {[%clk 0:02:40.5]} 16... Kh8 {[%clk
0:02:17.2]} 17. Ned5 {[%clk 0:02:23.4]} 17... Nxd5 {[%clk 0:02:16.5]} 18. Nxd5
{[%clk 0:02:24.3]} 18... f5 {[%clk 0:02:17]} 19. f3 {[%clk 0:02:22.5]} 19... Qd7
{[%clk 0:02:13.9]} 20. Be3 {[%clk 0:02:22.9]} 20... Ne6 {[%clk 0:02:13.2]} 21.
bxc5 {[%clk 0:02:18.8]} 21... dxc5 {[%clk 0:02:04.8]} 22. a4 {[%clk 0:02:07.3]}
22... Rf7 {[%clk 0:02:02.1]} 23. a5 {[%clk 0:02:05.3]} 23... bxa5 {[%clk
0:02:02.4]} 24. Ra1 {[%clk 0:01:47.9]} 24... f4 {[%clk 0:02:01]} 25. Bf2 {[%clk
0:01:40.4]} 25... fxg3 {[%clk 0:02:00.1]} 26. hxg3 {[%clk 0:01:41.4]} 26... Ng5
{[%clk 0:02:00.9]} 27. f4 {[%clk 0:01:10.1]} 27... Qh3+ {[%clk 0:01:57.5]} 28.
Kg1 {[%clk 0:01:10.9]} 28... exf4 {[%clk 0:01:58.3]} 29. Nxf4 {[%clk 0:01:10.2]}
29... Rxf4 {[%clk 0:01:56.1]} 0-1

[Event "*** Titled Tuesday 3|2 Blitz"]
[Site "Chess.com"]
[Date "2015.02.24"]
[Round "3"]
[White "facu57"]
[Black "1random"]
[Result "0-1"]
[WhiteElo "2072"]
[BlackElo "2025"]
[TimeControl "180+2"]
[EndTime "11:32:30 PST"]
[Termination "1random won by resignation"]

1. e4 {[%clk 0:03:00]} 1... c6 {[%clk 0:02:56.7]} 2. d4 {[%clk 0:03:00.4]} 2...
d5 {[%clk 0:02:58.6]} 3. exd5 {[%clk 0:03:01.5]} 3... cxd5 {[%clk 0:03:00.5]} 4.
Nf3 {[%clk 0:03:02.9]} 4... Nc6 {[%clk 0:02:59.9]} 5. Bd3 {[%clk 0:03:03.9]}
5... Bg4 {[%clk 0:03:00.5]} 6. c3 {[%clk 0:03:05.2]} 6... e6 {[%clk 0:03:00.7]}
7. O-O {[%clk 0:03:06.1]} 7... Bd6 {[%clk 0:03:02.1]} 8. Re1 {[%clk 0:03:07.2]}
8... Nge7 {[%clk 0:03:02.7]} 9. Bg5 {[%clk 0:03:07.6]} 9... Qc7 {[%clk
0:03:03.4]} 10. h3 {[%clk 0:03:08.4]} 10... Bh5 {[%clk 0:03:03.7]} 11. Nbd2
{[%clk 0:03:09.6]} 11... O-O {[%clk 0:03:04.2]} 12. Qc2 {[%clk 0:03:09.5]} 12...
Bg6 {[%clk 0:03:04.9]} 13. a3 {[%clk 0:03:04.4]} 13... Rab8 {[%clk 0:02:54.1]}
14. Rac1 {[%clk 0:03:05]} 14... b5 {[%clk 0:02:54.5]} 15. Nf1 {[%clk 0:03:02.6]}
15... Na5 {[%clk 0:02:52]} 16. Ne3 {[%clk 0:02:57.1]} 16... Nc4 {[%clk
0:02:49.6]} 17. Bxe7 {[%clk 0:02:56.4]} 17... Bxe7 {[%clk 0:02:47.2]} 18. Ng4
{[%clk 0:02:53.3]} 18... Bxd3 {[%clk 0:02:42.6]} 19. Qxd3 {[%clk 0:02:54.3]}
19... Nxb2 {[%clk 0:02:43.6]} 20. Qe3 {[%clk 0:02:53.7]} 20... Nc4 {[%clk
0:02:40.8]} 21. Qd3 {[%clk 0:02:52.5]} 21... h6 {[%clk 0:02:20.5]} 22. Nfe5
{[%clk 0:02:51.5]} 22... Nxe5 {[%clk 0:02:08.9]} 23. Nxe5 {[%clk 0:02:50.6]}
23... Bxa3 {[%clk 0:02:09.7]} 24. Ra1 {[%clk 0:02:48.7]} 24... Bb2 {[%clk
0:02:07.5]} 25. Ra2 {[%clk 0:02:46.2]} 25... Qxc3 {[%clk 0:02:07.8]} 26. Qb1
{[%clk 0:02:40.2]} 26... Ba3 {[%clk 0:01:58.1]} 27. Re3 {[%clk 0:02:40.3]} 27...
Qc1+ {[%clk 0:01:52.8]} 28. Re1 {[%clk 0:02:37.2]} 28... Qxb1 {[%clk 0:01:48.8]}
29. Rxb1 {[%clk 0:02:38]} 29... b4 {[%clk 0:01:48.3]} 30. Nd7 {[%clk 0:02:37.5]}
30... Rbc8 {[%clk 0:01:42.5]} 31. Nxf8 {[%clk 0:02:37.8]} 31... Kxf8 {[%clk
0:01:44.4]} 32. Kf1 {[%clk 0:02:35.2]} 32... Rc4 {[%clk 0:01:45.1]} 33. Rd2
{[%clk 0:02:35.1]} 33... a5 {[%clk 0:01:44.9]} 34. Ke2 {[%clk 0:02:36.3]} 34...
a4 {[%clk 0:01:45.9]} 35. Kd3 {[%clk 0:02:37.8]} 35... Rc3+ {[%clk 0:01:45.2]}
36. Ke2 {[%clk 0:02:38.1]} 36... b3 {[%clk 0:01:46.6]} 37. g3 {[%clk 0:02:27.4]}
37... Bc1 {[%clk 0:01:18.4]} 38. Rd1 {[%clk 0:02:23.3]} 38... b2 {[%clk
0:01:11.3]} 39. Rd3 {[%clk 0:02:18.5]} 39... Rxd3 {[%clk 0:01:08.1]} 40. Kxd3
{[%clk 0:02:19.8]} 40... a3 {[%clk 0:01:09.7]} 41. Kc2 {[%clk 0:02:18.6]} 41...
a2 {[%clk 0:01:06.4]} 42. Rxb2 {[%clk 0:02:19.3]} 42... a1=Q {[%clk 0:01:05.5]}
43. Rb1 {[%clk 0:02:20.7]} 43... Qa2+ {[%clk 0:01:05.1]} 44. Kxc1 {[%clk
0:02:21.2]} 44... Qxf2 {[%clk 0:01:06.7]} 45. Rb3 {[%clk 0:02:22.3]} 45... Qxd4
{[%clk 0:01:07.3]} 0-1

[Event "*** Titled Tuesday 3|2 Blitz"]
[Site "Chess.com"]
[Date "2015.02.24"]
[Round "3"]
[White "mokerslag"]
[Black "gawk"]
[Result "1-0"]
[WhiteElo "2372"]
[BlackElo "2050"]
[TimeControl "180+2"]
[EndTime "11:32:42 PST"]
[Termination "mokerslag won by checkmate"]

1. e4 {[%clk 0:02:58.7]} 1... c6 {[%clk 0:02:55.7]} 2. d4 {[%clk 0:02:58.9]}
2... d5 {[%clk 0:02:56.4]} 3. e5 {[%clk 0:02:58.6]} 3... Bf5 {[%clk 0:02:54.5]}
4. h4 {[%clk 0:02:59.9]} 4... h5 {[%clk 0:02:53.9]} 5. Bg5 {[%clk 0:03:01.3]}
5... Qb6 {[%clk 0:02:49.2]} 6. Bd3 {[%clk 0:03:02.5]} 6... Bxd3 {[%clk
0:02:44.1]} 7. Qxd3 {[%clk 0:03:04.4]} 7... Qxb2 {[%clk 0:02:24.5]} 8. e6 {[%clk
0:03:05]} 8... Qxa1 {[%clk 0:01:12.9]} 9. Qb3 {[%clk 0:03:05.2]} 9... fxe6
{[%clk 0:00:52.6]} 10. Qxb7 {[%clk 0:03:02.8]} 10... Nd7 {[%clk 0:00:50.3]} 11.
Qxa8+ {[%clk 0:02:59.1]} 11... Kf7 {[%clk 0:00:51.6]} 12. Qb7 {[%clk 0:02:59.5]}
12... Ngf6 {[%clk 0:00:43]} 13. Nf3 {[%clk 0:02:58.2]} 13... Qxa2 {[%clk
0:00:44.1]} 14. O-O {[%clk 0:02:50.9]} 14... Qc4 {[%clk 0:00:40.7]} 15. Nbd2
{[%clk 0:02:24.8]} 15... Qxc2 {[%clk 0:00:16]} 16. Ra1 {[%clk 0:02:21.9]} 16...
Qf5 {[%clk 0:00:11.1]} 17. Nf1 {[%clk 0:02:17]} 17... e5 {[%clk 0:00:12.3]} 18.
Ng3 {[%clk 0:02:07.2]} 18... Qe6 {[%clk 0:00:13.1]} 19. Be3 {[%clk 0:02:06]}
19... Kg8 {[%clk 0:00:11.5]} 20. Ng5 {[%clk 0:01:59.4]} 20... Qd6 {[%clk
0:00:12.8]} 21. dxe5 {[%clk 0:01:58.7]} 21... Nxe5 {[%clk 0:00:12.6]} 22. Bf4
{[%clk 0:01:59.1]} 22... Ne4 {[%clk 0:00:07.4]} 23. N3xe4 {[%clk 0:01:55.4]}
23... dxe4 {[%clk 0:00:08.3]} 24. Qb3+ {[%clk 0:01:57]} 24... e6 {[%clk
0:00:08.6]} 25. Nxe6 {[%clk 0:01:55.5]} 25... Kh7 {[%clk 0:00:09.5]} 26. Ng5+
{[%clk 0:01:56.3]} 26... Kg6 {[%clk 0:00:11]} 27. Bxe5 {[%clk 0:01:52.8]} 27...
Qxe5 {[%clk 0:00:12]} 28. Qf7+ {[%clk 0:01:54.3]} 28... Kh6 {[%clk 0:00:13.5]}
29. Ra6 {[%clk 0:01:53.5]} 29... Bc5 {[%clk 0:00:12.6]} 30. Rxc6+ {[%clk
0:01:53.7]} 30... g6 {[%clk 0:00:10.1]} 31. Rxg6# {[%clk 0:01:51]} 1-0

[Event "*** Titled Tuesday 3|2 Blitz"]
[Site "Chess.com"]
[Date "2015.02.24"]
[Round "3"]
[White "EltajSafarli"]
[Black "guillead1"]
[Result "1-0"]
[WhiteElo "2599"]
[BlackElo "2257"]
[TimeControl "180+2"]
[EndTime "11:33:22 PST"]
[Termination "EltajSafarli won by resignation"]

1. e4 {[%clk 0:02:59.8]} 1... g6 {[%clk 0:02:59.8]} 2. d4 {[%clk 0:03:00.3]}
2... Bg7 {[%clk 0:03:01.3]} 3. Nc3 {[%clk 0:03:01.2]} 3... c6 {[%clk 0:03:02.8]}
4. Nf3 {[%clk 0:03:01.5]} 4... d5 {[%clk 0:03:04.3]} 5. h3 {[%clk 0:03:02.3]}
5... Nf6 {[%clk 0:03:05.2]} 6. Bd3 {[%clk 0:03:02.5]} 6... dxe4 {[%clk 0:03:06]}
7. Nxe4 {[%clk 0:03:04.4]} 7... Nxe4 {[%clk 0:03:07.6]} 8. Bxe4 {[%clk
0:03:05.1]} 8... Nd7 {[%clk 0:03:09.5]} 9. O-O {[%clk 0:03:05]} 9... O-O {[%clk
0:03:10.4]} 10. Bd3 {[%clk 0:03:06.9]} 10... e5 {[%clk 0:03:09.5]} 11. Bg5
{[%clk 0:03:01.3]} 11... Qb6 {[%clk 0:03:09.6]} 12. Re1 {[%clk 0:02:52.5]} 12...
exd4 {[%clk 0:02:52.2]} 13. Bc4 {[%clk 0:02:51.9]} 13... Qc5 {[%clk 0:02:34.3]}
14. Bb3 {[%clk 0:02:50.4]} 14... Ne5 {[%clk 0:02:30.3]} 15. Nxd4 {[%clk
0:02:42.4]} 15... Ng4 {[%clk 0:02:21.5]} 16. Be7 {[%clk 0:02:33.3]} 16... Qxd4
{[%clk 0:02:14.9]} 17. Qxd4 {[%clk 0:02:34.5]} 17... Bxd4 {[%clk 0:02:14.6]} 18.
hxg4 {[%clk 0:02:36.4]} 18... Re8 {[%clk 0:02:02.8]} 19. c3 {[%clk 0:02:37.4]}
19... Bg7 {[%clk 0:01:59]} 20. f3 {[%clk 0:02:33.7]} 20... Be6 {[%clk
0:01:44.8]} 21. Bc5 {[%clk 0:02:15.9]} 21... Bxb3 {[%clk 0:01:35.8]} 22. axb3
{[%clk 0:02:17.8]} 22... a6 {[%clk 0:01:22.4]} 23. Bb6 {[%clk 0:02:14.9]} 23...
Bf6 {[%clk 0:01:18.6]} 24. Kf2 {[%clk 0:02:12.4]} 24... Kg7 {[%clk 0:00:57.6]}
25. Rad1 {[%clk 0:02:12.3]} 25... Rxe1 {[%clk 0:00:58.2]} 26. Rxe1 {[%clk
0:02:14.2]} 26... a5 {[%clk 0:00:53.7]} 27. f4 {[%clk 0:02:10]} 27... h6 {[%clk
0:00:47.7]} 28. Ra1 {[%clk 0:02:08.4]} 28... Ra6 {[%clk 0:00:44.8]} 29. Bc7
{[%clk 0:02:06.9]} 29... b6 {[%clk 0:00:41.1]} 30. Ke3 {[%clk 0:02:06.9]} 30...
Be7 {[%clk 0:00:31.6]} 31. Ke4 {[%clk 0:02:04.9]} 31... Bc5 {[%clk 0:00:14.9]}
32. b4 {[%clk 0:02:03]} 32... Ra7 {[%clk 0:00:14.8]} 33. Be5+ {[%clk 0:01:59.7]}
33... f6 {[%clk 0:00:16]} 34. bxc5 {[%clk 0:02:01.6]} 34... fxe5 {[%clk
0:00:17]} 35. cxb6 {[%clk 0:02:02.9]} 35... Rb7 {[%clk 0:00:18.6]} 36. b4 {[%clk
0:02:04.4]} 36... Rxb6 {[%clk 0:00:20.5]} 1-0

[Event "*** Titled Tuesday 3|2 Blitz"]
[Site "Chess.com"]
[Date "2015.02.24"]
[Round "3"]
[White "pedromartinez91"]
[Black "Rogue_King"]
[Result "1-0"]
[WhiteElo "2118"]
[BlackElo "2007"]
[TimeControl "180+2"]
[EndTime "11:33:23 PST"]
[Termination "pedromartinez91 won by resignation"]

1. e4 {[%clk 0:03:00]} 1... c6 {[%clk 0:02:59.1]} 2. d4 {[%clk 0:03:00.7]} 2...
d5 {[%clk 0:03:01]} 3. Nd2 {[%clk 0:03:02.4]} 3... dxe4 {[%clk 0:03:01.9]} 4.
Nxe4 {[%clk 0:03:03.6]} 4... Bf5 {[%clk 0:03:03.5]} 5. Ng3 {[%clk 0:03:04.6]}
5... Bg6 {[%clk 0:03:05.1]} 6. h4 {[%clk 0:03:05.9]} 6... h6 {[%clk 0:03:06.1]}
7. Nf3 {[%clk 0:03:07.6]} 7... Nd7 {[%clk 0:03:05.8]} 8. h5 {[%clk 0:03:08.5]}
8... Bh7 {[%clk 0:03:07.1]} 9. Bd3 {[%clk 0:03:09.8]} 9... Bxd3 {[%clk
0:03:08.2]} 10. Qxd3 {[%clk 0:03:11.3]} 10... e6 {[%clk 0:03:10.1]} 11. Bf4
{[%clk 0:03:11.5]} 11... Qa5+ {[%clk 0:03:11]} 12. Bd2 {[%clk 0:03:12.5]} 12...
Bb4 {[%clk 0:03:11.9]} 13. c3 {[%clk 0:03:12.7]} 13... Be7 {[%clk 0:03:13.3]}
14. Ne4 {[%clk 0:03:14]} 14... Ngf6 {[%clk 0:03:13.5]} 15. c4 {[%clk 0:03:14.3]}
15... Qc7 {[%clk 0:03:12.8]} 16. g3 {[%clk 0:03:14.5]} 16... Nxe4 {[%clk
0:03:11.5]} 17. Qxe4 {[%clk 0:03:15.3]} 17... Nf6 {[%clk 0:03:13.1]} 18. Qe2
{[%clk 0:03:15.6]} 18... c5 {[%clk 0:03:12.7]} 19. Bf4 {[%clk 0:03:13.2]} 19...
Qa5+ {[%clk 0:03:11.9]} 20. Bd2 {[%clk 0:03:14.3]} 20... Qc7 {[%clk 0:03:12.7]}
21. Bc3 {[%clk 0:03:03]} 21... cxd4 {[%clk 0:03:07.9]} 22. Nxd4 {[%clk
0:03:03.5]} 22... Rc8 {[%clk 0:02:50]} 23. b3 {[%clk 0:03:03.8]} 23... O-O
{[%clk 0:02:47.2]} 24. O-O {[%clk 0:02:58]} 24... a6 {[%clk 0:02:41.7]} 25. Kg2
{[%clk 0:02:55.6]} 25... b5 {[%clk 0:02:37]} 26. Rac1 {[%clk 0:02:55.7]} 26...
bxc4 {[%clk 0:02:37.9]} 27. Qf3 {[%clk 0:02:42.9]} 27... Ba3 {[%clk 0:02:23.9]}
28. Rc2 {[%clk 0:02:43.6]} 28... cxb3 {[%clk 0:02:24.7]} 29. axb3 {[%clk
0:02:32.3]} 29... Qd6 {[%clk 0:01:37.4]} 30. Rd1 {[%clk 0:02:28.5]} 30... Qd5
{[%clk 0:01:38.2]} 31. Qxd5 {[%clk 0:01:59.2]} 31... Nxd5 {[%clk 0:01:40.1]} 32.
Ba5 {[%clk 0:01:57.2]} 32... Rxc2 {[%clk 0:01:36.2]} 33. Nxc2 {[%clk 0:01:57.9]}
33... Rc8 {[%clk 0:01:37.7]} 34. Nxa3 {[%clk 0:01:58.3]} 34... Rb8 {[%clk
0:01:31.5]} 35. Rd3 {[%clk 0:01:54.2]} 35... Nf6 {[%clk 0:01:26.4]} 36. Rd8+
{[%clk 0:01:52]} 36... Rxd8 {[%clk 0:01:26.4]} 37. Bxd8 {[%clk 0:01:53.6]} 37...
Nxh5 {[%clk 0:01:27.3]} 38. Nc2 {[%clk 0:01:55.3]} 38... g5 {[%clk 0:01:26.7]}
39. Nb4 {[%clk 0:01:55.2]} 39... a5 {[%clk 0:01:24.7]} 40. Nc6 {[%clk
0:01:54.7]} 40... Kf8 {[%clk 0:01:21.1]} 41. Nxa5 {[%clk 0:01:54.9]} 41... Ke8
{[%clk 0:01:22.3]} 42. Bb6 {[%clk 0:01:55.9]} 42... Kd7 {[%clk 0:01:23.1]} 43.
Bd4 {[%clk 0:01:55.2]} 43... f6 {[%clk 0:01:22.4]} 44. b4 {[%clk 0:01:56.4]}
44... e5 {[%clk 0:01:23.7]} 45. Ba7 {[%clk 0:01:56.9]} 45... Ng7 {[%clk
0:01:17.6]} 46. b5 {[%clk 0:01:58]} 46... Ne6 {[%clk 0:01:16.8]} 47. b6 {[%clk
0:01:59.7]} 47... Nc5 {[%clk 0:01:10.4]} 48. b7 {[%clk 0:02:01]} 48... Nxb7
{[%clk 0:01:11.5]} 49. Nxb7 {[%clk 0:02:02.7]} 49... h5 {[%clk 0:01:07]} 50. Be3
{[%clk 0:01:58.3]} 50... e4 {[%clk 0:01:01.2]} 51. Nc5+ {[%clk 0:01:58.4]} 1-0

[Event "*** Titled Tuesday 3|2 Blitz"]
[Site "Chess.com"]
[Date "2015.02.24"]
[Round "3"]
[White "PauloCesarCosta"]
[Black "CraiggoryC"]
[Result "1-0"]
[WhiteElo "2057"]
[BlackElo "1981"]
[TimeControl "180+2"]
[EndTime "11:33:40 PST"]
[Termination "PauloCesarCosta won by resignation"]

1. Nf3 {[%clk 0:02:58.4]} 1... Nf6 {[%clk 0:02:53.4]} 2. c4 {[%clk 0:02:58.7]}
2... e6 {[%clk 0:02:51]} 3. d4 {[%clk 0:02:59.5]} 3... d5 {[%clk 0:02:51.9]} 4.
Bg5 {[%clk 0:02:59.4]} 4... c6 {[%clk 0:02:52.4]} 5. e3 {[%clk 0:03:00.1]} 5...
Nbd7 {[%clk 0:02:48.7]} 6. Nc3 {[%clk 0:02:51.9]} 6... Qa5 {[%clk 0:02:49]} 7.
Nd2 {[%clk 0:02:52.8]} 7... dxc4 {[%clk 0:02:42.8]} 8. Bxf6 {[%clk 0:02:48.9]}
8... Nxf6 {[%clk 0:02:43.2]} 9. Nxc4 {[%clk 0:02:49.5]} 9... Qd8 {[%clk
0:02:40.9]} 10. Be2 {[%clk 0:02:47.9]} 10... Bb4 {[%clk 0:02:40.2]} 11. Qb3
{[%clk 0:02:31.2]} 11... a5 {[%clk 0:02:37.7]} 12. O-O {[%clk 0:02:27.6]} 12...
O-O {[%clk 0:02:36.7]} 13. g3 {[%clk 0:02:22.2]} 13... b5 {[%clk 0:02:29.1]} 14.
Ne5 {[%clk 0:02:19.1]} 14... Bb7 {[%clk 0:02:28.4]} 15. a4 {[%clk 0:02:16.4]}
15... Rb8 {[%clk 0:02:12.9]} 16. axb5 {[%clk 0:02:04.7]} 16... cxb5 {[%clk
0:02:13.6]} 17. Bxb5 {[%clk 0:02:06.2]} 17... Bxc3 {[%clk 0:01:17.1]} 18. Qxc3
{[%clk 0:02:02.2]} 18... Qd5 {[%clk 0:01:12.8]} 19. Bc6 {[%clk 0:01:56.7]} 19...
Bxc6 {[%clk 0:01:02.5]} 20. Qxc6 {[%clk 0:01:52.6]} 20... Rxb2 {[%clk
0:00:50.2]} 21. Qxd5 {[%clk 0:01:46.9]} 21... Nxd5 {[%clk 0:00:51]} 22. Rxa5
{[%clk 0:01:48.5]} 22... Rc8 {[%clk 0:00:41.9]} 23. Rfa1 {[%clk 0:01:44.1]}
23... Nb6 {[%clk 0:00:40.3]} 24. Ra7 {[%clk 0:01:40.4]} 24... f6 {[%clk
0:00:17.8]} 25. Nd3 {[%clk 0:01:41.1]} 25... Rd2 {[%clk 0:00:17.4]} 26. Nc5
{[%clk 0:01:36.5]} 26... e5 {[%clk 0:00:15.2]} 27. Rb1 {[%clk 0:01:26.9]} 27...
exd4 {[%clk 0:00:09.8]} 28. exd4 {[%clk 0:01:24.1]} 28... Nd5 {[%clk 0:00:09]}
29. Rbb7 {[%clk 0:01:20.9]} 29... Rxd4 {[%clk 0:00:09.7]} 30. Rxg7+ {[%clk
0:01:15.8]} 30... Kh8 {[%clk 0:00:10.5]} 31. Rxh7+ {[%clk 0:01:16.1]} 31... Kg8
{[%clk 0:00:11.9]} 32. Rag7+ {[%clk 0:01:00.8]} 32... Kf8 {[%clk 0:00:12.9]} 33.
Ne6+ {[%clk 0:01:02.4]} 1-0